[Event "Live Chess"]
[Site "Chess.com"]
[Date "2024.06.02"]
[Round "-"]
[White "Tushinskiy"]
[Black "AlexanderMatlak"]
[Result "1-0"]
[WhiteElo "2228"]
[BlackElo "2402"]
[TimeControl "300"]
[EndTime "16:55:43 PDT"]
[Termination "Tushinskiy won on time"]

1. d4 {[%clk 0:04:54.6]} 1... Nf6 {[%clk 0:04:58.9]} 2. c3 {[%clk 0:04:54.5]}
2... g6 {[%clk 0:04:57.7]} 3. Nf3 {[%clk 0:04:54.4]} 3... Bg7 {[%clk 0:04:56.5]}
4. Bf4 {[%clk 0:04:54.3]} 4... O-O {[%clk 0:04:55.6]} 5. Bg3 {[%clk 0:04:54.2]}
5... d6 {[%clk 0:04:54]} 6. Nbd2 {[%clk 0:04:53.3]} 6... c5 {[%clk 0:04:42.8]}
7. e3 {[%clk 0:04:50.3]} 7... b6 {[%clk 0:04:38.9]} 8. Bd3 {[%clk 0:04:48.4]}
8... Bb7 {[%clk 0:04:38.3]} 9. Qe2 {[%clk 0:04:47.5]} 9... Nbd7 {[%clk
0:04:37.2]} 10. O-O {[%clk 0:04:46.4]} 10... a6 {[%clk 0:04:36.8]} 11. Rad1
{[%clk 0:04:45.1]} 11... b5 {[%clk 0:04:35.5]} 12. e4 {[%clk 0:04:44.4]} 12...
Nh5 {[%clk 0:04:24.8]} 13. e5 {[%clk 0:04:39.9]} 13... Nxg3 {[%clk 0:04:23.7]}
14. hxg3 {[%clk 0:04:37.8]} 14... cxd4 {[%clk 0:04:21.5]} 15. cxd4 {[%clk
0:04:25.6]} 15... dxe5 {[%clk 0:04:09]} 16. dxe5 {[%clk 0:04:23.1]} 16... Nc5
{[%clk 0:03:49.7]} 17. Bb1 {[%clk 0:04:20.7]} 17... Qb6 {[%clk 0:03:45.4]} 18.
Ne4 {[%clk 0:04:17.9]} 18... Nxe4 {[%clk 0:03:24.9]} 19. Bxe4 {[%clk 0:04:17.8]}
19... Bxe4 {[%clk 0:03:17.8]} 20. Qxe4 {[%clk 0:04:17.7]} 20... e6 {[%clk
0:03:15.4]} 21. Rd6 {[%clk 0:04:12.1]} 21... Qc5 {[%clk 0:03:12.9]} 22. Rfd1
{[%clk 0:04:10.2]} 22... a5 {[%clk 0:03:05]} 23. Rc6 {[%clk 0:03:59]} 23... Qa7
{[%clk 0:03:01.4]} 24. Rdc1 {[%clk 0:03:50.7]} 24... Rad8 {[%clk 0:02:39.8]} 25.
Qe2 {[%clk 0:03:40.5]} 25... Rd5 {[%clk 0:02:34.2]} 26. Rc7 {[%clk 0:03:34.8]}
26... Qb8 {[%clk 0:02:29.1]} 27. R1c6 {[%clk 0:03:27.5]} 27... h6 {[%clk
0:02:25.4]} 28. Qc2 {[%clk 0:03:25.7]} 28... b4 {[%clk 0:02:19.3]} 29. Rc8
{[%clk 0:03:15.3]} 29... Qb5 {[%clk 0:02:18.2]} 30. Rxf8+ {[%clk 0:03:13]} 30...
Bxf8 {[%clk 0:02:18.1]} 31. Rc8 {[%clk 0:03:11.3]} 31... Kg7 {[%clk 0:01:53.1]}
32. Rc7 {[%clk 0:03:00.9]} 32... Rd7 {[%clk 0:01:47.5]} 33. Rc4 {[%clk
0:02:52.8]} 33... Be7 {[%clk 0:01:39]} 34. b3 {[%clk 0:02:48.4]} 34... Qd5
{[%clk 0:01:33.8]} 35. Kh2 {[%clk 0:02:19.5]} 35... g5 {[%clk 0:01:31.6]} 36.
Qe2 {[%clk 0:01:46.3]} 36... a4 {[%clk 0:01:23.3]} 37. Nd4 {[%clk 0:01:40.3]}
37... axb3 {[%clk 0:01:01.2]} 38. axb3 {[%clk 0:01:40.2]} 38... Bc5 {[%clk
0:00:50.4]} 39. Nf3 {[%clk 0:01:37.6]} 39... Be7 {[%clk 0:00:48.9]} 40. Rd4
{[%clk 0:01:30.1]} 40... Qb7 {[%clk 0:00:47.9]} 41. Qd3 {[%clk 0:01:19.7]} 41...
Rxd4 {[%clk 0:00:46.5]} 42. Nxd4 {[%clk 0:01:17.3]} 42... Qc7 {[%clk 0:00:30.3]}
43. f4 {[%clk 0:01:03.8]} 43... Qc3 {[%clk 0:00:25.7]} 44. Qe4 {[%clk
0:01:00.8]} 44... Bc5 {[%clk 0:00:14.6]} 45. Ne2 {[%clk 0:00:55.7]} 45... Qd2
{[%clk 0:00:09.9]} 46. fxg5 {[%clk 0:00:52.7]} 46... hxg5 {[%clk 0:00:08.7]} 47.
Qg4 {[%clk 0:00:44.8]} 47... Qe3 {[%clk 0:00:08]} 48. Kh3 {[%clk 0:00:36.7]}
48... Qxe5 {[%clk 0:00:06.5]} 49. Nf4 {[%clk 0:00:34.7]} 49... Qf5 {[%clk
0:00:05]} 50. Qxf5 {[%clk 0:00:28.6]} 50... exf5 {[%clk 0:00:04.9]} 51. Nd5
{[%clk 0:00:27.2]} 51... Bd6 {[%clk 0:00:03.8]} 52. g4 {[%clk 0:00:20.7]} 52...
Kg6 {[%clk 0:00:03.1]} 53. g3 {[%clk 0:00:13.8]} 53... fxg4+ {[%clk 0:00:02.4]}
54. Kxg4 {[%clk 0:00:13.4]} 54... f5+ {[%clk 0:00:02.3]} 55. Kf3 {[%clk
0:00:12.6]} 55... f4 {[%clk 0:00:02.2]} 56. g4 {[%clk 0:00:10.8]} 56... Kf7
{[%clk 0:00:01.2]} 57. Ke4 {[%clk 0:00:10.3]} 57... Ke6 {[%clk 0:00:01]} 58. Nb6
{[%clk 0:00:08.7]} 1-0

[Event "Live Chess"]
[Site "Chess.com"]
[Date "2024.06.02"]
[Round "-"]
[White "StoreySniper"]
[Black "toog"]
[Result "1-0"]
[WhiteElo "2544"]
[BlackElo "2596"]
[TimeControl "300"]
[EndTime "16:56:14 PDT"]
[Termination "StoreySniper won by resignation"]

1. e4 {[%clk 0:04:57.4]} 1... e6 {[%clk 0:04:55.8]} 2. d4 {[%clk 0:04:55.3]}
2... d5 {[%clk 0:04:55.3]} 3. Nd2 {[%clk 0:04:54.7]} 3... Nc6 {[%clk 0:04:52.1]}
4. Ngf3 {[%clk 0:04:50.9]} 4... Nf6 {[%clk 0:04:51.2]} 5. e5 {[%clk 0:04:48]}
5... Nd7 {[%clk 0:04:50.3]} 6. c3 {[%clk 0:04:45.4]} 6... f6 {[%clk 0:04:45.2]}
7. exf6 {[%clk 0:04:33.7]} 7... Qxf6 {[%clk 0:04:45.1]} 8. Bb5 {[%clk
0:04:29.1]} 8... Bd6 {[%clk 0:04:40.8]} 9. O-O {[%clk 0:04:25.5]} 9... O-O
{[%clk 0:04:38.8]} 10. Re1 {[%clk 0:04:22]} 10... e5 {[%clk 0:04:32.5]} 11. Bxc6
{[%clk 0:04:20.2]} 11... bxc6 {[%clk 0:04:30]} 12. dxe5 {[%clk 0:04:03.6]} 12...
Nxe5 {[%clk 0:04:26.3]} 13. Rf1 {[%clk 0:04:01]} 13... Bg4 {[%clk 0:04:17.2]}
14. h3 {[%clk 0:03:51]} 14... Bh5 {[%clk 0:04:14.4]} 15. Re1 {[%clk 0:03:42.1]}
15... Nxf3+ {[%clk 0:04:10.2]} 16. Nxf3 {[%clk 0:03:40.6]} 16... Bxf3 {[%clk
0:03:46.7]} 17. Qxf3 {[%clk 0:03:38.5]} 17... Qxf3 {[%clk 0:03:46.2]} 18. gxf3
{[%clk 0:03:37.4]} 18... Rxf3 {[%clk 0:03:45.9]} 19. Kg2 {[%clk 0:03:35.8]}
19... Raf8 {[%clk 0:03:42.8]} 20. Be3 {[%clk 0:03:34.1]} 20... a6 {[%clk
0:03:39.4]} 21. Rad1 {[%clk 0:03:31.9]} 21... R3f6 {[%clk 0:03:36.4]} 22. c4
{[%clk 0:03:28.2]} 22... Rg6+ {[%clk 0:03:34.4]} 23. Kf1 {[%clk 0:03:22]} 23...
dxc4 {[%clk 0:03:31]} 24. Rd4 {[%clk 0:03:15.1]} 24... Rf3 {[%clk 0:03:25.9]}
25. Rxc4 {[%clk 0:03:11.9]} 25... Rxh3 {[%clk 0:03:24.4]} 26. Ke2 {[%clk
0:02:59.7]} 26... Rh5 {[%clk 0:02:43.2]} 27. Rxc6 {[%clk 0:02:54.4]} 27... a5
{[%clk 0:02:42.5]} 28. Ra6 {[%clk 0:02:46.6]} 28... Rb5 {[%clk 0:02:38.2]} 29.
b3 {[%clk 0:02:43.1]} 29... h5 {[%clk 0:02:37.1]} 30. Rh1 {[%clk 0:02:35.6]}
30... Kh7 {[%clk 0:02:33.7]} 31. a4 {[%clk 0:02:23.5]} 31... Rf5 {[%clk
0:02:30.9]} 32. Bd2 {[%clk 0:02:12.7]} 32... Bb4 {[%clk 0:02:24.1]} 33. Rxg6
{[%clk 0:02:07.6]} 33... Kxg6 {[%clk 0:02:24]} 34. Bxb4 {[%clk 0:02:00.5]} 34...
axb4 {[%clk 0:02:23.9]} 35. Rh4 {[%clk 0:01:59.3]} 35... c5 {[%clk 0:02:20.8]}
36. a5 {[%clk 0:01:55.5]} 36... Rf6 {[%clk 0:02:13.1]} 37. Rc4 {[%clk 0:01:53]}
37... Rc6 {[%clk 0:02:11.1]} 38. f4 {[%clk 0:01:50.4]} 38... Kf5 {[%clk
0:02:08.7]} 39. Kf3 {[%clk 0:01:49.3]} 39... g5 {[%clk 0:02:02.2]} 40. fxg5
{[%clk 0:01:44.2]} 40... Kxg5 {[%clk 0:02:00.4]} 41. Ke4 {[%clk 0:01:39.1]}
41... h4 {[%clk 0:01:52.2]} 42. Kd5 {[%clk 0:01:38.2]} 42... Ra6 {[%clk
0:01:51.1]} 43. Rxc5 {[%clk 0:01:33.6]} 43... h3 {[%clk 0:01:48.6]} 44. Kc4+
{[%clk 0:01:32.8]} 44... Kg4 {[%clk 0:01:47.8]} 45. Kxb4 {[%clk 0:01:26.8]}
45... Ra8 {[%clk 0:01:28.6]} 46. Ka4 {[%clk 0:01:24]} 46... Kf3 {[%clk
0:01:16.4]} 47. Rh5 {[%clk 0:01:19]} 47... Kg2 {[%clk 0:01:15.1]} 48. b4 {[%clk
0:01:17.6]} 48... h2 {[%clk 0:01:14.6]} 49. b5 {[%clk 0:01:14.6]} 49... h1=Q
{[%clk 0:01:14.5]} 50. Rxh1 {[%clk 0:01:13.5]} 50... Kxh1 {[%clk 0:01:14.4]} 51.
b6 {[%clk 0:01:12.7]} 51... Kg2 {[%clk 0:01:13.9]} 52. b7 {[%clk 0:01:11.5]} 1-0

[Event "Live Chess"]
[Site "Chess.com"]
[Date "2024.06.02"]
[Round "-"]
[White "dmitro74"]
[Black "Rusty_Bridges"]
[Result "1-0"]
[WhiteElo "1729"]
[BlackElo "1466"]
[TimeControl "300"]
[EndTime "16:56:47 PDT"]
[Termination "dmitro74 won on time"]

1. d4 {[%clk 0:04:57.6]} 1... g6 {[%clk 0:04:56.2]} 2. c4 {[%clk 0:04:55.3]}
2... Bg7 {[%clk 0:04:55.3]} 3. Nc3 {[%clk 0:04:54.5]} 3... e6 {[%clk 0:04:54.4]}
4. e4 {[%clk 0:04:52.1]} 4... Ne7 {[%clk 0:04:53.7]} 5. f4 {[%clk 0:04:50.7]}
5... Nbc6 {[%clk 0:04:40.7]} 6. Nge2 {[%clk 0:04:47.9]} 6... O-O {[%clk
0:04:33.5]} 7. g3 {[%clk 0:04:46.3]} 7... b6 {[%clk 0:04:31.3]} 8. Bg2 {[%clk
0:04:44.7]} 8... Bb7 {[%clk 0:04:30.1]} 9. Be3 {[%clk 0:04:38.4]} 9... Rc8
{[%clk 0:04:17.9]} 10. O-O {[%clk 0:04:36.7]} 10... h5 {[%clk 0:04:15.1]} 11. h4
{[%clk 0:04:33.8]} 11... Kh7 {[%clk 0:04:07.1]} 12. a3 {[%clk 0:04:29]} 12... a5
{[%clk 0:04:03.7]} 13. d5 {[%clk 0:04:19]} 13... exd5 {[%clk 0:04:00.5]} 14.
cxd5 {[%clk 0:04:17.7]} 14... Na7 {[%clk 0:03:51]} 15. f5 {[%clk 0:04:13.8]}
15... Ba6 {[%clk 0:03:36]} 16. f6 {[%clk 0:04:10]} 16... Bh8 {[%clk 0:03:20.4]}
17. fxe7 {[%clk 0:04:07.2]} 17... Qxe7 {[%clk 0:03:20.3]} 18. Rf2 {[%clk
0:03:45.6]} 18... Nb5 {[%clk 0:03:10.6]} 19. Qd2 {[%clk 0:03:26.8]} 19... Nd6
{[%clk 0:02:55.5]} 20. Raf1 {[%clk 0:03:19.3]} 20... Nc4 {[%clk 0:02:51.5]} 21.
Qc1 {[%clk 0:03:09.8]} 21... Ne5 {[%clk 0:02:39.4]} 22. Bh6 {[%clk 0:03:04.9]}
22... Bg7 {[%clk 0:02:28.8]} 23. Bxg7 {[%clk 0:03:02.2]} 23... Kxg7 {[%clk
0:02:26.4]} 24. Qd2 {[%clk 0:02:21.5]} 24... Nc4 {[%clk 0:02:20.5]} 25. Qc1
{[%clk 0:02:08.8]} 25... Ne5 {[%clk 0:02:18.2]} 26. Rf3 {[%clk 0:02:03.1]} 26...
Nxf3+ {[%clk 0:02:01.6]} 27. Bxf3 {[%clk 0:02:00]} 27... f5 {[%clk 0:01:37.1]}
28. e5 {[%clk 0:01:51.7]} 28... Qxe5 {[%clk 0:01:22.1]} 29. Re1 {[%clk
0:01:42.8]} 29... Qf6 {[%clk 0:01:05.1]} 30. Kg2 {[%clk 0:01:39.4]} 30... Rce8
{[%clk 0:01:00.3]} 31. Nf4 {[%clk 0:01:34.5]} 31... Rxe1 {[%clk 0:00:54.3]} 32.
Qxe1 {[%clk 0:01:32.8]} 32... Rf7 {[%clk 0:00:36.7]} 33. Qd2 {[%clk 0:01:23.6]}
33... Re7 {[%clk 0:00:25.4]} 34. Bxh5 {[%clk 0:01:19.2]} 34... Qd6 {[%clk
0:00:11.9]} 35. Bxg6 {[%clk 0:01:08.4]} 35... Bc4 {[%clk 0:00:09.4]} 36. Bxf5
{[%clk 0:01:03.2]} 36... c6 {[%clk 0:00:07.8]} 37. Qd4+ {[%clk 0:00:59.3]} 37...
Qe5 {[%clk 0:00:03.9]} 38. Qxe5+ {[%clk 0:00:51.3]} 38... Rxe5 {[%clk
0:00:03.8]} 39. Bxd7 {[%clk 0:00:43.6]} 39... cxd5 {[%clk 0:00:02.1]} 40. Ne6+
{[%clk 0:00:39.1]} 1-0

[Event "Live Chess"]
[Site "Chess.com"]
[Date "2024.06.02"]
[Round "-"]
[White "Duke_of_Bebington"]
[Black "wadsy27"]
[Result "0-1"]
[WhiteElo "1622"]
[BlackElo "2581"]
[TimeControl "300"]
[EndTime "16:56:51 PDT"]
[Termination "wadsy27 won by resignation"]

1. e4 {[%clk 0:04:54.8]} 1... c5 {[%clk 0:04:58]} 2. c3 {[%clk 0:04:50.7]} 2...
d5 {[%clk 0:04:54.5]} 3. exd5 {[%clk 0:04:49.4]} 3... Qxd5 {[%clk 0:04:54.4]} 4.
Nf3 {[%clk 0:04:47.9]} 4... e6 {[%clk 0:04:53.6]} 5. Be2 {[%clk 0:04:46.6]} 5...
Nf6 {[%clk 0:04:52.9]} 6. d4 {[%clk 0:04:45.5]} 6... Nc6 {[%clk 0:04:43]} 7. O-O
{[%clk 0:04:40.4]} 7... cxd4 {[%clk 0:04:42]} 8. Nxd4 {[%clk 0:04:38.4]} 8...
Nxd4 {[%clk 0:04:40.3]} 9. cxd4 {[%clk 0:04:37.4]} 9... Be7 {[%clk 0:04:38]} 10.
Nc3 {[%clk 0:04:36]} 10... Qd8 {[%clk 0:04:36.4]} 11. Bf4 {[%clk 0:04:23.4]}
11... O-O {[%clk 0:04:32.2]} 12. Rc1 {[%clk 0:04:21.8]} 12... Bd7 {[%clk
0:04:30.8]} 13. Bf3 {[%clk 0:04:19.3]} 13... Bc6 {[%clk 0:04:28.1]} 14. Bxc6
{[%clk 0:04:17.7]} 14... bxc6 {[%clk 0:04:28]} 15. Qf3 {[%clk 0:04:07.2]} 15...
Nd5 {[%clk 0:04:26.2]} 16. Nxd5 {[%clk 0:04:02.7]} 16... cxd5 {[%clk 0:04:25.1]}
17. Qg3 {[%clk 0:03:59.5]} 17... Bf6 {[%clk 0:04:17.9]} 18. Be5 {[%clk 0:03:55]}
18... Bxe5 {[%clk 0:04:16.4]} 19. Qxe5 {[%clk 0:03:54.1]} 19... Qb6 {[%clk
0:04:12.8]} 20. b3 {[%clk 0:03:50.9]} 20... Rac8 {[%clk 0:04:10.9]} 21. Qe3
{[%clk 0:03:44.1]} 21... h6 {[%clk 0:04:09.1]} 22. Rc3 {[%clk 0:03:41.9]} 22...
Qa5 {[%clk 0:04:06.3]} 23. Rfc1 {[%clk 0:03:27.5]} 23... Rxc3 {[%clk 0:04:05]}
24. Qxc3 {[%clk 0:03:26.5]} 24... Qxa2 {[%clk 0:04:04.5]} 25. b4 {[%clk
0:03:20.5]} 25... a6 {[%clk 0:03:57.5]} 26. Qc5 {[%clk 0:03:19.2]} 26... Qb2
{[%clk 0:03:45.9]} 27. h3 {[%clk 0:03:15.7]} 27... Rb8 {[%clk 0:03:41.9]} 0-1

[Event "Live Chess"]
[Site "Chess.com"]
[Date "2024.06.02"]
[Round "-"]
[White "mychess51"]
[Black "gobbles19"]
[Result "0-1"]
[WhiteElo "1754"]
[BlackElo "2262"]
[TimeControl "300"]
[EndTime "16:56:57 PDT"]
[Termination "gobbles19 won by resignation"]

1. d4 {[%clk 0:04:56.2]} 1... Nf6 {[%clk 0:04:58.7]} 2. Nf3 {[%clk 0:04:54.7]}
2... e6 {[%clk 0:04:57.4]} 3. e3 {[%clk 0:04:54.2]} 3... c5 {[%clk 0:04:56.8]}
4. c3 {[%clk 0:04:52.9]} 4... Be7 {[%clk 0:04:54.1]} 5. Nbd2 {[%clk 0:04:50.9]}
5... O-O {[%clk 0:04:53.7]} 6. Bd3 {[%clk 0:04:34.5]} 6... b6 {[%clk 0:04:50.8]}
7. O-O {[%clk 0:04:29.3]} 7... Bb7 {[%clk 0:04:50.2]} 8. Re1 {[%clk 0:04:27.8]}
8... d6 {[%clk 0:04:37.8]} 9. Qc2 {[%clk 0:04:14.4]} 9... Nc6 {[%clk 0:04:36.1]}
10. Ne4 {[%clk 0:04:11.6]} 10... h6 {[%clk 0:04:33.9]} 11. Nxf6+ {[%clk
0:04:09.2]} 11... Bxf6 {[%clk 0:04:33.8]} 12. Bd2 {[%clk 0:03:56.7]} 12... Rc8
{[%clk 0:04:30.9]} 13. Qa4 {[%clk 0:03:52.4]} 13... Qd7 {[%clk 0:04:19.1]} 14.
Rad1 {[%clk 0:03:38.8]} 14... Rfd8 {[%clk 0:04:13.8]} 15. Bc1 {[%clk 0:03:30.1]}
15... Nxd4 {[%clk 0:04:06.4]} 16. cxd4 {[%clk 0:03:05.6]} 16... Qxa4 {[%clk
0:04:03.9]} 0-1

[Event "Live Chess"]
[Site "Chess.com"]
[Date "2024.06.02"]
[Round "-"]
[White "ShanthamGrarks"]
[Black "raclement"]
[Result "0-1"]
[WhiteElo "1846"]
[BlackElo "1733"]
[TimeControl "300"]
[EndTime "16:57:23 PDT"]
[Termination "raclement won by resignation"]

1. d4 {[%clk 0:04:57.6]} 1... c5 {[%clk 0:04:56.8]} 2. d5 {[%clk 0:04:55]} 2...
d6 {[%clk 0:04:53.5]} 3. c4 {[%clk 0:04:51.9]} 3... g6 {[%clk 0:04:51.2]} 4. Nc3
{[%clk 0:04:50.5]} 4... Bg7 {[%clk 0:04:48.1]} 5. Nf3 {[%clk 0:04:50]} 5... Nf6
{[%clk 0:04:44]} 6. e4 {[%clk 0:04:47.4]} 6... O-O {[%clk 0:04:41.8]} 7. Be2
{[%clk 0:04:47]} 7... e6 {[%clk 0:04:35]} 8. h4 {[%clk 0:04:45.6]} 8... exd5
{[%clk 0:04:33.2]} 9. cxd5 {[%clk 0:04:43.4]} 9... h6 {[%clk 0:04:30.4]} 10. Bd2
{[%clk 0:04:40.2]} 10... Re8 {[%clk 0:04:28.8]} 11. Qc2 {[%clk 0:04:37.9]} 11...
Bg4 {[%clk 0:04:20.4]} 12. Nh2 {[%clk 0:04:30.5]} 12... Bxe2 {[%clk 0:04:17.9]}
13. Kxe2 {[%clk 0:04:28.2]} 13... Qe7 {[%clk 0:03:38.9]} 14. f3 {[%clk
0:04:25.3]} 14... h5 {[%clk 0:03:35.2]} 15. Rae1 {[%clk 0:04:21.4]} 15... a6
{[%clk 0:03:33.7]} 16. a4 {[%clk 0:04:18.7]} 16... Nbd7 {[%clk 0:03:29.8]} 17.
a5 {[%clk 0:04:14.6]} 17... Ne5 {[%clk 0:03:27.8]} 18. Kf2 {[%clk 0:04:08]}
18... Qd7 {[%clk 0:03:26]} 19. Bg5 {[%clk 0:03:55.3]} 19... Rab8 {[%clk
0:03:23.2]} 20. f4 {[%clk 0:03:45.1]} 20... Nfg4+ {[%clk 0:03:19.9]} 21. Nxg4
{[%clk 0:03:42.2]} 21... Nxg4+ {[%clk 0:03:18.3]} 22. Kg3 {[%clk 0:03:35]} 22...
b5 {[%clk 0:03:16]} 23. Rhf1 {[%clk 0:03:24.4]} 23... b4 {[%clk 0:03:11.8]} 24.
Nd1 {[%clk 0:03:19]} 24... Qb5 {[%clk 0:03:07.6]} 25. f5 {[%clk 0:03:11.5]}
25... Be5+ {[%clk 0:03:02.9]} 26. Kh3 {[%clk 0:03:09.5]} 26... c4 {[%clk
0:02:54.8]} 27. fxg6 {[%clk 0:03:05.1]} 27... fxg6 {[%clk 0:02:51.7]} 28. Ne3
{[%clk 0:02:57.9]} 28... b3 {[%clk 0:02:38.6]} 29. Qxc4 {[%clk 0:02:46.5]} 29...
Qxc4 {[%clk 0:02:36.3]} 30. Nxc4 {[%clk 0:02:45.3]} 30... Rf8 {[%clk 0:02:13.4]}
31. Rf3 {[%clk 0:02:35]} 31... Nf2+ {[%clk 0:01:58]} 32. Rxf2 {[%clk 0:02:30.5]}
32... Rxf2 {[%clk 0:01:52.8]} 33. Be3 {[%clk 0:02:17.5]} 33... Rxb2 {[%clk
0:01:46.3]} 34. Nxb2 {[%clk 0:02:14.2]} 34... Bxb2 {[%clk 0:01:44.1]} 35. Rb1
{[%clk 0:02:13]} 35... Be5 {[%clk 0:01:40.2]} 36. Bb6 {[%clk 0:02:11.4]} 36...
b2 {[%clk 0:01:38]} 37. g4 {[%clk 0:02:04.9]} 37... Rc8 {[%clk 0:01:36.2]} 38.
gxh5 {[%clk 0:01:51.8]} 38... Rc1 {[%clk 0:01:27.1]} 39. Rxb2 {[%clk 0:01:51.3]}
39... Bxb2 {[%clk 0:01:24.2]} 40. hxg6 {[%clk 0:01:50.8]} 40... Rc4 {[%clk
0:01:19.6]} 41. Bd8 {[%clk 0:01:24.7]} 41... Rxe4 {[%clk 0:01:17.6]} 42. h5
{[%clk 0:01:23.9]} 42... Be5 {[%clk 0:01:11.1]} 43. h6 {[%clk 0:01:20.9]} 43...
Rd4 {[%clk 0:01:07.3]} 44. Bg5 {[%clk 0:01:08.1]} 44... Rxd5 {[%clk 0:01:04.6]}
45. Kg4 {[%clk 0:01:07.3]} 45... Rxa5 {[%clk 0:01:02.7]} 46. Bd2 {[%clk
0:00:58.2]} 46... Ra4+ {[%clk 0:01:00.6]} 47. Kf5 {[%clk 0:00:57.1]} 47... Rh4
{[%clk 0:00:56.4]} 48. Ke6 {[%clk 0:00:54.7]} 48... Rg4 {[%clk 0:00:51]} 49. Kf5
{[%clk 0:00:52.4]} 49... Rg2 {[%clk 0:00:47.9]} 50. Be3 {[%clk 0:00:49.3]} 50...
a5 {[%clk 0:00:43]} 51. Bc1 {[%clk 0:00:45.5]} 51... a4 {[%clk 0:00:33.4]} 52.
Ba3 {[%clk 0:00:43.6]} 52... Rg3 {[%clk 0:00:29.6]} 53. Bc1 {[%clk 0:00:41]}
53... a3 {[%clk 0:00:27.8]} 54. h7+ {[%clk 0:00:39.3]} 54... Kh8 {[%clk
0:00:25.3]} 55. Bf4 {[%clk 0:00:30.8]} 55... Rf3 {[%clk 0:00:20.3]} 56. g7+
{[%clk 0:00:25]} 56... Kxg7 {[%clk 0:00:17.7]} 57. h8=N {[%clk 0:00:22.4]} 57...
Kxh8 {[%clk 0:00:15.9]} 58. Kg6 {[%clk 0:00:21.4]} 58... Rxf4 {[%clk 0:00:14.6]}
59. Kg5 {[%clk 0:00:19.6]} 59... a2 {[%clk 0:00:13.2]} 0-1

[Event "Live Chess"]
[Site "Chess.com"]
[Date "2024.06.02"]
[Round "-"]
[White "stevochess11"]
[Black "jk0110"]
[Result "1-0"]
[WhiteElo "1703"]
[BlackElo "1235"]
[TimeControl "300"]
[EndTime "16:57:48 PDT"]
[Termination "stevochess11 won on time"]

1. e4 {[%clk 0:04:55.3]} 1... e5 {[%clk 0:04:58.1]} 2. Bc4 {[%clk 0:04:53.7]}
2... f5 {[%clk 0:04:54.4]} 3. exf5 {[%clk 0:04:50.5]} 3... Nf6 {[%clk
0:04:46.9]} 4. Nf3 {[%clk 0:04:47.9]} 4... e4 {[%clk 0:04:44.9]} 5. Ne5 {[%clk
0:04:45.6]} 5... d5 {[%clk 0:04:35.3]} 6. Bb3 {[%clk 0:04:37.5]} 6... Bd6 {[%clk
0:04:32.4]} 7. d4 {[%clk 0:04:28.6]} 7... Bxf5 {[%clk 0:04:15.5]} 8. Nc3 {[%clk
0:04:16.7]} 8... c6 {[%clk 0:04:09.2]} 9. Bg5 {[%clk 0:04:09.3]} 9... O-O {[%clk
0:03:58.7]} 10. O-O {[%clk 0:04:05.9]} 10... Nbd7 {[%clk 0:03:47]} 11. Qe2
{[%clk 0:04:03.2]} 11... Nxe5 {[%clk 0:03:34.9]} 12. dxe5 {[%clk 0:03:59.9]}
12... Bxe5 {[%clk 0:03:33.7]} 13. Bxf6 {[%clk 0:03:53.3]} 13... Qxf6 {[%clk
0:03:28.7]} 14. Nxe4 {[%clk 0:03:50.6]} 14... Bxe4 {[%clk 0:03:12.7]} 15. Qxe4
{[%clk 0:03:47.6]} 15... Rae8 {[%clk 0:02:54.9]} 16. Qf3 {[%clk 0:03:31.2]}
16... Qh6 {[%clk 0:02:22.4]} 17. Qh3 {[%clk 0:03:21.7]} 17... Qxh3 {[%clk
0:02:14.9]} 18. gxh3 {[%clk 0:03:21.6]} 18... Bxb2 {[%clk 0:02:13.2]} 19. Rab1
{[%clk 0:03:19.3]} 19... Bc3 {[%clk 0:02:06.1]} 20. a4 {[%clk 0:03:12.7]} 20...
a5 {[%clk 0:02:00]} 21. Ba2 {[%clk 0:03:07.9]} 21... Rf3 {[%clk 0:01:37.6]} 22.
Rxb7 {[%clk 0:02:59.9]} 22... Rxh3 {[%clk 0:01:28.7]} 23. Rc7 {[%clk 0:02:55.4]}
23... h6 {[%clk 0:01:15.9]} 24. Rxc6 {[%clk 0:02:51.4]} 24... Be5 {[%clk
0:01:05.5]} 25. Bxd5+ {[%clk 0:02:38.1]} 25... Kh7 {[%clk 0:01:04]} 26. Be4+
{[%clk 0:02:35.4]} 26... Kh8 {[%clk 0:01:01.5]} 27. Bf5 {[%clk 0:02:23.6]} 27...
Rh4 {[%clk 0:00:53.5]} 28. Re6 {[%clk 0:02:15.6]} 28... Bxh2+ {[%clk 0:00:45]}
29. Kg2 {[%clk 0:02:14.3]} 29... Rf8 {[%clk 0:00:41]} 30. Bd3 {[%clk 0:01:56.4]}
30... Bc7 {[%clk 0:00:31.1]} 31. f3 {[%clk 0:01:42.6]} 31... Rh2+ {[%clk
0:00:19.5]} 32. Kg1 {[%clk 0:01:40.8]} 32... Kg8 {[%clk 0:00:10.6]} 33. Bc4
{[%clk 0:01:35.7]} 33... Kh8 {[%clk 0:00:09.1]} 34. Re7 {[%clk 0:01:27.3]} 34...
Bd6 {[%clk 0:00:06.6]} 35. Rd7 {[%clk 0:01:22.1]} 35... Bb8 {[%clk 0:00:03.7]}
36. Bd3 {[%clk 0:01:13]} 36... Rd2 {[%clk 0:00:02.1]} 37. Re1 {[%clk 0:01:04.4]}
1-0

[Event "Live Chess"]
[Site "Chess.com"]
[Date "2024.06.02"]
[Round "-"]
[White "RichardABates"]
[Black "MagnersCarlsberg2870"]
[Result "1-0"]
[WhiteElo "2311"]
[BlackElo "1771"]
[TimeControl "300"]
[EndTime "16:58:04 PDT"]
[Termination "RichardABates won by resignation"]

1. d4 {[%clk 0:04:54.9]} 1... d5 {[%clk 0:04:57.4]} 2. c4 {[%clk 0:04:52.9]}
2... e6 {[%clk 0:04:56]} 3. Nc3 {[%clk 0:04:51]} 3... Nf6 {[%clk 0:04:55]} 4.
cxd5 {[%clk 0:04:50.1]} 4... exd5 {[%clk 0:04:53.7]} 5. Bg5 {[%clk 0:04:48.9]}
5... Be7 {[%clk 0:04:50.2]} 6. e3 {[%clk 0:04:47.7]} 6... O-O {[%clk 0:04:48.8]}
7. Bd3 {[%clk 0:04:46.3]} 7... h6 {[%clk 0:04:46.5]} 8. Bh4 {[%clk 0:04:41.9]}
8... b6 {[%clk 0:04:44.1]} 9. Nge2 {[%clk 0:04:39.9]} 9... Bb7 {[%clk 0:04:43]}
10. Qc2 {[%clk 0:04:37.7]} 10... Nbd7 {[%clk 0:04:41.2]} 11. O-O-O {[%clk
0:04:35.7]} 11... c5 {[%clk 0:04:40.1]} 12. h3 {[%clk 0:04:16.8]} 12... a5
{[%clk 0:04:07.5]} 13. g4 {[%clk 0:04:07.5]} 13... a4 {[%clk 0:04:05.2]} 14. a3
{[%clk 0:04:04.4]} 14... Ba6 {[%clk 0:03:56.5]} 15. Bxa6 {[%clk 0:03:57.7]}
15... Rxa6 {[%clk 0:03:55]} 16. g5 {[%clk 0:03:50.8]} 16... hxg5 {[%clk
0:03:52]} 17. Bxg5 {[%clk 0:03:49.6]} 17... Ne4 {[%clk 0:03:49.1]} 18. Bxe7
{[%clk 0:03:41.6]} 18... Qxe7 {[%clk 0:03:48.1]} 19. Nxd5 {[%clk 0:03:39.6]}
19... Qe6 {[%clk 0:03:24.8]} 20. Nc7 {[%clk 0:03:35.5]} 20... Qa2 {[%clk
0:03:23.6]} 21. Nxa6 {[%clk 0:03:31]} 21... Nxf2 {[%clk 0:03:16.8]} 22. Nc3
{[%clk 0:03:25.6]} 22... Qc4 {[%clk 0:03:09.5]} 23. Qxf2 {[%clk 0:03:22.8]}
23... Qxa6 {[%clk 0:03:08.5]} 24. d5 {[%clk 0:03:20.2]} 24... Ne5 {[%clk
0:03:05.5]} 25. Qe2 {[%clk 0:03:14.4]} 25... c4 {[%clk 0:02:58.7]} 26. Rhg1
{[%clk 0:03:13]} 26... Nd3+ {[%clk 0:02:57.2]} 27. Kb1 {[%clk 0:03:09.4]} 27...
b5 {[%clk 0:02:47.4]} 28. Qg2 {[%clk 0:02:50.2]} 28... g6 {[%clk 0:02:45.2]} 29.
Ne4 {[%clk 0:02:41.2]} 29... b4 {[%clk 0:02:42.4]} 30. d6 {[%clk 0:02:32.9]}
30... bxa3 {[%clk 0:02:39.9]} 31. Nf6+ {[%clk 0:02:29.8]} 31... Kg7 {[%clk
0:02:38.7]} 32. Qg5 {[%clk 0:02:04]} 32... Nxb2 {[%clk 0:02:25.3]} 33. Nh5+
{[%clk 0:01:59.4]} 33... Kh7 {[%clk 0:02:17.1]} 34. Qe5 {[%clk 0:01:57.7]} 34...
f6 {[%clk 0:02:14.5]} 35. Nxf6+ {[%clk 0:01:52.7]} 35... Rxf6 {[%clk 0:02:12.9]}
36. Qxf6 {[%clk 0:01:51.4]} 36... a2+ {[%clk 0:02:08.2]} 37. Kxa2 {[%clk
0:01:48.7]} 1-0